[Event "*** SCC Grand Prix: Titled Tuesday Blitz"]
[Site "Chess.com"]
[Date "2020.06.02"]
[Round "4"]
[White "GMHess"]
[Black "DraG0s3L"]
[Result "1-0"]
[WhiteElo "2728"]
[BlackElo "2509"]
[TimeControl "180+1"]
[EndTime "10:40:26 PDT"]
[Termination "GMHess won by resignation"]

1. e4 {[%clk 0:03:00.9]} 1... c5 {[%clk 0:03:00.1]} 2. Nc3 {[%clk 0:02:54.8]}
2... Nc6 {[%clk 0:03:00.1]} 3. Bb5 {[%clk 0:02:50.3]} 3... g6 {[%clk 0:02:59.7]}
4. h4 {[%clk 0:02:46.1]} 4... Bg7 {[%clk 0:02:59.7]} 5. h5 {[%clk 0:02:46.2]}
5... d6 {[%clk 0:02:57.5]} 6. d3 {[%clk 0:02:42]} 6... Bd7 {[%clk 0:02:50.9]} 7.
h6 {[%clk 0:02:35.9]} 7... Bf6 {[%clk 0:02:51.1]} 8. Nd5 {[%clk 0:02:29.2]} 8...
a6 {[%clk 0:02:33.9]} 9. Bc4 {[%clk 0:02:00.9]} 9... e6 {[%clk 0:02:18.6]} 10.
Nxf6+ {[%clk 0:01:56.2]} 10... Qxf6 {[%clk 0:02:19.5]} 11. Nf3 {[%clk 0:01:52]}
11... Ne5 {[%clk 0:02:18.8]} 12. Nxe5 {[%clk 0:01:49.7]} 12... Qxe5 {[%clk
0:02:17.7]} 13. Bb3 {[%clk 0:01:36.5]} 13... Ne7 {[%clk 0:02:07.1]} 14. c3
{[%clk 0:01:25.5]} 14... f5 {[%clk 0:01:54.8]} 15. Qe2 {[%clk 0:01:17.5]} 15...
fxe4 {[%clk 0:01:39.2]} 16. dxe4 {[%clk 0:01:12]} 16... Bc6 {[%clk 0:01:39.4]}
17. f3 {[%clk 0:01:05.8]} 17... O-O-O {[%clk 0:01:35.2]} 18. Be3 {[%clk
0:01:04.3]} 18... Kc7 {[%clk 0:01:09.7]} 19. O-O-O {[%clk 0:01:02.9]} 19... Nc8
{[%clk 0:01:09.7]} 20. Qd2 {[%clk 0:00:38.4]} 20... Rhf8 {[%clk 0:01:05.8]} 21.
Rh4 {[%clk 0:00:34.8]} 21... Rd7 {[%clk 0:00:44.8]} 22. Bf4 {[%clk 0:00:28.5]}
22... Qf6 {[%clk 0:00:44.8]} 23. Bg5 {[%clk 0:00:28.7]} 23... Qe5 {[%clk
0:00:41.6]} 24. f4 {[%clk 0:00:16.7]} 24... Qxe4 {[%clk 0:00:38.3]} 25. Re1
{[%clk 0:00:17.1]} 25... Qxg2 {[%clk 0:00:37.4]} 26. Bxe6 {[%clk 0:00:16]} 26...
Rdd8 {[%clk 0:00:14]} 27. Bxd8+ {[%clk 0:00:12.1]} 27... Kxd8 {[%clk 0:00:14.1]}
28. Qxg2 {[%clk 0:00:12]} 28... Bxg2 {[%clk 0:00:14.6]} 29. Re2 {[%clk
0:00:09.9]} 29... Bf3 {[%clk 0:00:12.9]} 30. Rd2 {[%clk 0:00:09.1]} 30... Ke7
{[%clk 0:00:10.9]} 31. Bxc8 {[%clk 0:00:08.1]} 31... Rxc8 {[%clk 0:00:11.8]} 32.
Rh3 {[%clk 0:00:08.6]} 32... Bc6 {[%clk 0:00:11.1]} 33. Re3+ {[%clk 0:00:09.1]}
33... Kd7 {[%clk 0:00:11.6]} 34. Red3 {[%clk 0:00:09.7]} 34... d5 {[%clk
0:00:11.4]} 35. Re3 {[%clk 0:00:10.6]} 35... Rf8 {[%clk 0:00:11.5]} 36. Rde2
{[%clk 0:00:10.6]} 36... Rf7 {[%clk 0:00:12.1]} 37. Re5 {[%clk 0:00:10.7]} 37...
Kd6 {[%clk 0:00:12.3]} 38. Re6+ {[%clk 0:00:09.9]} 38... Kd7 {[%clk 0:00:12.9]}
39. R2e5 {[%clk 0:00:09.4]} 39... Rxf4 {[%clk 0:00:04.2]} 40. Re7+ {[%clk
0:00:09.3]} 40... Kd8 {[%clk 0:00:04.7]} 41. Rxh7 {[%clk 0:00:08.7]} 41... Rh4
{[%clk 0:00:05.3]} 42. Ree7 {[%clk 0:00:07.3]} 42... g5 {[%clk 0:00:04.8]} 43.
Reg7 {[%clk 0:00:07.2]} 43... g4 {[%clk 0:00:05]} 44. Rh8+ {[%clk 0:00:07.3]}
44... Be8 {[%clk 0:00:05.6]} 45. Rgg8 {[%clk 0:00:07.8]} 45... Kd7 {[%clk
0:00:06.1]} 46. Rxe8 {[%clk 0:00:08]} 46... g3 {[%clk 0:00:07]} 47. Reg8 {[%clk
0:00:07]} 47... Rh1+ {[%clk 0:00:05.8]} 48. Kd2 {[%clk 0:00:07.3]} 48... Rh2+
{[%clk 0:00:06.5]} 49. Ke3 {[%clk 0:00:07.9]} 49... g2 {[%clk 0:00:07.2]} 50. h7
{[%clk 0:00:05.3]} 50... Rh3+ {[%clk 0:00:06.7]} 51. Kf2 {[%clk 0:00:05.5]}
51... Rh2 {[%clk 0:00:07.4]} 52. Rxg2 {[%clk 0:00:05]} 52... Rh6 {[%clk
0:00:07.7]} 53. Rg7+ {[%clk 0:00:05.2]} 53... Kd6 {[%clk 0:00:07.8]} 54. Rd8+
{[%clk 0:00:05.6]} 54... Kc6 {[%clk 0:00:08.2]} 55. h8=Q {[%clk 0:00:05.8]}
55... Rxh8 {[%clk 0:00:08.7]} 56. Rxh8 {[%clk 0:00:05.9]} 1-0

[Event "*** SCC Grand Prix: Titled Tuesday Blitz"]
[Site "Chess.com"]
[Date "2020.06.02"]
[Round "4"]
[White "Bayernbk"]
[Black "Charlottemillard17"]
[Result "1-0"]
[WhiteElo "2497"]
[BlackElo "1478"]
[TimeControl "180+1"]
[EndTime "10:40:26 PDT"]
[Termination "Bayernbk won by checkmate"]

1. e4 {[%clk 0:03:00.9]} 1... e5 {[%clk 0:02:59.2]} 2. Nc3 {[%clk 0:03:00.3]}
2... Nf6 {[%clk 0:02:57.6]} 3. Nf3 {[%clk 0:03:00.6]} 3... Nc6 {[%clk
0:02:53.2]} 4. d4 {[%clk 0:03:01.2]} 4... exd4 {[%clk 0:02:52.2]} 5. Nxd4 {[%clk
0:03:01.1]} 5... Bb4 {[%clk 0:02:51.6]} 6. Nxc6 {[%clk 0:03:01.6]} 6... bxc6
{[%clk 0:02:49.8]} 7. Bd3 {[%clk 0:03:01.8]} 7... O-O {[%clk 0:02:42.2]} 8. O-O
{[%clk 0:03:00.9]} 8... Bxc3 {[%clk 0:02:40.4]} 9. bxc3 {[%clk 0:03:00.2]} 9...
d5 {[%clk 0:02:40.8]} 10. exd5 {[%clk 0:02:56.2]} 10... cxd5 {[%clk 0:02:40.2]}
11. Bg5 {[%clk 0:02:43.1]} 11... h6 {[%clk 0:02:31.4]} 12. Bh4 {[%clk
0:02:40.7]} 12... Qd6 {[%clk 0:02:28.8]} 13. Rb1 {[%clk 0:02:38.5]} 13... Bg4
{[%clk 0:02:25.8]} 14. Qd2 {[%clk 0:02:35.3]} 14... Bh5 {[%clk 0:02:05.6]} 15.
Bg3 {[%clk 0:02:30.2]} 15... Qc5 {[%clk 0:02:01.4]} 16. Rb5 {[%clk 0:02:25.2]}
16... Qc6 {[%clk 0:01:57.5]} 17. Rfb1 {[%clk 0:02:25.1]} 17... Rfe8 {[%clk
0:01:55.3]} 18. h3 {[%clk 0:02:23.1]} 18... Ne4 {[%clk 0:01:44.3]} 19. Bxe4
{[%clk 0:02:21.9]} 19... Rxe4 {[%clk 0:01:38.3]} 20. Qxd5 {[%clk 0:02:21.8]}
20... Qxd5 {[%clk 0:01:29]} 21. Rxd5 {[%clk 0:02:22.4]} 21... Bg6 {[%clk
0:01:26.8]} 22. Rd7 {[%clk 0:02:15.4]} 22... Re2 {[%clk 0:01:24.5]} 23. Rb7
{[%clk 0:02:11.4]} 23... Rxc2 {[%clk 0:01:21.7]} 24. a4 {[%clk 0:01:54.4]} 24...
Rxc3 {[%clk 0:01:18.2]} 25. Rdxc7 {[%clk 0:01:51.7]} 25... Rxc7 {[%clk
0:01:14.2]} 26. Bxc7 {[%clk 0:01:51]} 26... Bc2 {[%clk 0:01:13.2]} 27. a5 {[%clk
0:01:50]} 27... Be4 {[%clk 0:01:09.8]} 28. Rb5 {[%clk 0:01:45]} 28... Bc6 {[%clk
0:01:08.3]} 29. Rc5 {[%clk 0:01:44.3]} 29... Bb7 {[%clk 0:01:04]} 30. f3 {[%clk
0:01:42.9]} 30... a6 {[%clk 0:01:00.9]} 31. Kf2 {[%clk 0:01:41.2]} 31... Kh7
{[%clk 0:00:59.6]} 32. Ke3 {[%clk 0:01:36]} 32... g6 {[%clk 0:00:59.3]} 33. Be5
{[%clk 0:01:34.7]} 33... Re8 {[%clk 0:00:56.6]} 34. Kd4 {[%clk 0:01:34.9]} 34...
Rd8+ {[%clk 0:00:55.2]} 35. Kc4 {[%clk 0:01:35.3]} 35... h5 {[%clk 0:00:49.2]}
36. Rc7 {[%clk 0:01:32]} 36... Bd5+ {[%clk 0:00:47.2]} 37. Kc5 {[%clk
0:01:32.5]} 37... Be6 {[%clk 0:00:44]} 38. Kb6 {[%clk 0:01:31.8]} 38... Bc8
{[%clk 0:00:39.3]} 39. f4 {[%clk 0:01:16.4]} 39... Kg8 {[%clk 0:00:37]} 40. h4
{[%clk 0:01:15.4]} 40... Kf8 {[%clk 0:00:34.4]} 41. Ra7 {[%clk 0:01:12.8]} 41...
Re8 {[%clk 0:00:32.1]} 42. Bd6+ {[%clk 0:01:02.6]} 42... Kg7 {[%clk 0:00:30.6]}
43. Be5+ {[%clk 0:00:58.6]} 43... Kf8 {[%clk 0:00:28.7]} 44. Ra8 {[%clk
0:00:58]} 44... Kg8 {[%clk 0:00:18.2]} 45. Kc7 {[%clk 0:00:50.9]} 45... Kf8
{[%clk 0:00:12.8]} 46. Rxc8 {[%clk 0:00:50.5]} 46... Rxc8+ {[%clk 0:00:13.3]}
47. Kxc8 {[%clk 0:00:51.1]} 47... Ke7 {[%clk 0:00:13.9]} 48. Kb7 {[%clk
0:00:51.3]} 48... Ke6 {[%clk 0:00:14.1]} 49. Kxa6 {[%clk 0:00:51.7]} 49... Kf5
{[%clk 0:00:15]} 50. Kb7 {[%clk 0:00:51.7]} 50... Kg4 {[%clk 0:00:15.9]} 51. a6
{[%clk 0:00:52.2]} 51... Kg3 {[%clk 0:00:16.8]} 52. a7 {[%clk 0:00:52.7]} 52...
Kxg2 {[%clk 0:00:17.7]} 53. a8=Q {[%clk 0:00:53]} 53... Kg3 {[%clk 0:00:18.6]}
54. Qd8 {[%clk 0:00:52.9]} 54... Kg4 {[%clk 0:00:17.8]} 55. Qg5+ {[%clk
0:00:53.3]} 55... Kf3 {[%clk 0:00:15.9]} 56. f5 {[%clk 0:00:53.8]} 56... Ke4
{[%clk 0:00:15.4]} 57. fxg6 {[%clk 0:00:53.7]} 57... fxg6 {[%clk 0:00:16.3]} 58.
Qxg6+ {[%clk 0:00:54.4]} 58... Kxe5 {[%clk 0:00:16.4]} 59. Qxh5+ {[%clk
0:00:55]} 59... Kf4 {[%clk 0:00:16.4]} 60. Qg5+ {[%clk 0:00:55.4]} 60... Ke4
{[%clk 0:00:16.5]} 61. h5 {[%clk 0:00:56]} 61... Kd4 {[%clk 0:00:17]} 62. h6
{[%clk 0:00:56.7]} 62... Kd3 {[%clk 0:00:17.9]} 63. h7 {[%clk 0:00:57.6]} 63...
Kd4 {[%clk 0:00:18.8]} 64. h8=Q+ {[%clk 0:00:58.1]} 64... Kd3 {[%clk 0:00:19.7]}
65. Qh3+ {[%clk 0:00:58.8]} 65... Kd4 {[%clk 0:00:20.6]} 66. Qhh4+ {[%clk
0:00:59.3]} 66... Kd3 {[%clk 0:00:21.5]} 67. Qgg3+ {[%clk 0:00:59.8]} 67... Kd2
{[%clk 0:00:21.1]} 68. Qhh2+ {[%clk 0:01:00.4]} 68... Kd1 {[%clk 0:00:22]} 69.
Qgg1# {[%clk 0:01:01]} 1-0

[Event "*** SCC Grand Prix: Titled Tuesday Blitz"]
[Site "Chess.com"]
[Date "2020.06.02"]
[Round "4"]
[White "DariaVoit"]
[Black "Khamrakulov_Djurabek"]
[Result "1-0"]
[WhiteElo "2556"]
[BlackElo "2799"]
[TimeControl "180+1"]
[EndTime "10:40:27 PDT"]
[Termination "DariaVoit won by resignation"]

1. d4 {[%clk 0:02:58.5]} 1... f5 {[%clk 0:02:58.9]} 2. e4 {[%clk 0:02:57.9]}
2... d6 {[%clk 0:02:57.3]} 3. Nc3 {[%clk 0:02:54.8]} 3... g6 {[%clk 0:02:54.7]}
4. h4 {[%clk 0:02:52.2]} 4... fxe4 {[%clk 0:02:52.1]} 5. h5 {[%clk 0:02:47.2]}
5... Bg7 {[%clk 0:02:43.8]} 6. hxg6 {[%clk 0:02:45.5]} 6... hxg6 {[%clk
0:02:43.6]} 7. Rxh8 {[%clk 0:02:44.6]} 7... Bxh8 {[%clk 0:02:44.5]} 8. Nxe4
{[%clk 0:02:42]} 8... Nf6 {[%clk 0:02:44.3]} 9. Bd3 {[%clk 0:02:38.9]} 9... Kf7
{[%clk 0:02:26.1]} 10. Bh6 {[%clk 0:02:24.8]} 10... Nxe4 {[%clk 0:02:02.7]} 11.
Bxe4 {[%clk 0:02:25.7]} 11... c6 {[%clk 0:01:54.4]} 12. Nf3 {[%clk 0:02:08.3]}
12... Bf6 {[%clk 0:01:53.5]} 13. Ng5+ {[%clk 0:02:07.7]} 13... Bxg5 {[%clk
0:01:50.5]} 14. Bxg5 {[%clk 0:02:08.6]} 14... Bf5 {[%clk 0:01:48.3]} 15. Bxf5
{[%clk 0:01:55.5]} 15... Qa5+ {[%clk 0:01:47.9]} 16. c3 {[%clk 0:01:42.2]} 16...
Qxf5 {[%clk 0:01:48.8]} 17. Qb3+ {[%clk 0:01:41.6]} 17... Qe6+ {[%clk
0:01:23.3]} 18. Qxe6+ {[%clk 0:01:41.3]} 18... Kxe6 {[%clk 0:01:24.2]} 19. Kd2
{[%clk 0:01:41]} 19... Kf7 {[%clk 0:01:21.4]} 20. Rh1 {[%clk 0:01:33.9]} 20...
Kg7 {[%clk 0:01:08.1]} 21. Bxe7 {[%clk 0:01:33.1]} 21... d5 {[%clk 0:01:08.7]}
22. f4 {[%clk 0:01:23.8]} 22... Nd7 {[%clk 0:01:01.3]} 23. Bd6 {[%clk
0:01:23.7]} 23... Rg8 {[%clk 0:00:29.4]} 24. Ke3 {[%clk 0:01:14.1]} 24... Kf7
{[%clk 0:00:25.2]} 25. Be5 {[%clk 0:01:08.4]} 25... Nf8 {[%clk 0:00:23.5]} 26.
g4 {[%clk 0:01:01.9]} 26... b6 {[%clk 0:00:19.5]} 27. Rh2 {[%clk 0:00:51.2]}
27... Ke7 {[%clk 0:00:19.5]} 28. Rh6 {[%clk 0:00:47]} 28... Kf7 {[%clk
0:00:18.9]} 29. a4 {[%clk 0:00:46.5]} 29... Ke7 {[%clk 0:00:18.7]} 30. b4 {[%clk
0:00:46.6]} 30... Kf7 {[%clk 0:00:18.4]} 31. Rh1 {[%clk 0:00:46.6]} 31... Ke7
{[%clk 0:00:18.6]} 32. a5 {[%clk 0:00:45.4]} 32... Ke6 {[%clk 0:00:16.5]} 33. a6
{[%clk 0:00:42.3]} 33... Kf7 {[%clk 0:00:12.3]} 34. Rh6 {[%clk 0:00:39.3]} 34...
Ke7 {[%clk 0:00:12.4]} 35. Kf3 {[%clk 0:00:38.2]} 35... Kf7 {[%clk 0:00:12.4]}
36. f5 {[%clk 0:00:35.3]} 36... Ke7 {[%clk 0:00:12]} 37. Kf4 {[%clk 0:00:31.2]}
37... Kf7 {[%clk 0:00:12.3]} 38. Kg5 {[%clk 0:00:23.7]} 38... gxf5+ {[%clk
0:00:11.9]} 39. Kxf5 {[%clk 0:00:24.6]} 39... Nd7 {[%clk 0:00:11.1]} 40. Rxc6
{[%clk 0:00:23.2]} 40... Ke7 {[%clk 0:00:11.3]} 41. Rc7 {[%clk 0:00:19.3]} 41...
Rf8+ {[%clk 0:00:11.7]} 42. Kg5 {[%clk 0:00:19.7]} 42... Ra8 {[%clk 0:00:11.6]}
43. Kf4 {[%clk 0:00:17.8]} 43... Ke6 {[%clk 0:00:11.7]} 44. Rc6+ {[%clk
0:00:16.2]} 44... Ke7 {[%clk 0:00:11.6]} 45. b5 {[%clk 0:00:15.8]} 45... Rf8+
{[%clk 0:00:11.1]} 46. Kg3 {[%clk 0:00:16.1]} 46... Rf1 {[%clk 0:00:09.8]} 47.
Rc7 {[%clk 0:00:16.3]} 47... Rb1 {[%clk 0:00:09.5]} 48. Rxa7 {[%clk 0:00:16]}
48... Rxb5 {[%clk 0:00:10]} 49. Rb7 {[%clk 0:00:16]} 49... Ra5 {[%clk
0:00:10.3]} 50. a7 {[%clk 0:00:16]} 50... Ke6 {[%clk 0:00:10.4]} 51. g5 {[%clk
0:00:15.1]} 51... Ra3 {[%clk 0:00:10.4]} 52. Kg4 {[%clk 0:00:14.8]} 52... Ra1
{[%clk 0:00:10.6]} 53. g6 {[%clk 0:00:14.4]} 53... Rg1+ {[%clk 0:00:10.6]} 54.
Kh5 {[%clk 0:00:14.2]} 54... Kf5 {[%clk 0:00:10.6]} 55. Kh6 {[%clk 0:00:13.8]}
55... Rxg6+ {[%clk 0:00:09.4]} 56. Kh7 {[%clk 0:00:14]} 56... Nf8+ {[%clk
0:00:08.9]} 57. Kh8 {[%clk 0:00:14.2]} 57... Rh6+ {[%clk 0:00:07.5]} 58. Kg8
{[%clk 0:00:14]} 1-0

[Event "*** SCC Grand Prix: Titled Tuesday Blitz"]
[Site "Chess.com"]
[Date "2020.06.02"]
[Round "4"]
[White "AungTZ"]
[Black "MartinMatthiesen"]
[Result "0-1"]
[WhiteElo "1928"]
[BlackElo "2361"]
[TimeControl "180+1"]
[EndTime "10:40:27 PDT"]
[Termination "MartinMatthiesen won by resignation"]

1. e4 {[%clk 0:03:00.9]} 1... c5 {[%clk 0:02:49.2]} 2. Nf3 {[%clk 0:02:59.8]}
2... d6 {[%clk 0:02:48.8]} 3. Bb5+ {[%clk 0:02:57.2]} 3... Bd7 {[%clk
0:02:47.7]} 4. Bxd7+ {[%clk 0:02:57]} 4... Nxd7 {[%clk 0:02:48.6]} 5. O-O {[%clk
0:02:56.4]} 5... Ngf6 {[%clk 0:02:47.9]} 6. Re1 {[%clk 0:02:56.5]} 6... e6
{[%clk 0:02:47.4]} 7. c3 {[%clk 0:02:56.6]} 7... Be7 {[%clk 0:02:46.2]} 8. d4
{[%clk 0:02:56.6]} 8... O-O {[%clk 0:02:45.2]} 9. Bg5 {[%clk 0:02:49.5]} 9...
cxd4 {[%clk 0:02:31]} 10. Nxd4 {[%clk 0:02:37.3]} 10... Nc5 {[%clk 0:02:16.3]}
11. Qc2 {[%clk 0:02:11.3]} 11... Qb6 {[%clk 0:01:36.1]} 12. Nd2 {[%clk 0:02:03]}
12... Qa6 {[%clk 0:01:35.3]} 13. a3 {[%clk 0:01:30.3]} 13... Rfe8 {[%clk
0:01:26.4]} 14. h3 {[%clk 0:01:27.6]} 14... Rac8 {[%clk 0:00:59.9]} 15. Rad1
{[%clk 0:01:11]} 15... h6 {[%clk 0:00:49.1]} 16. Bxf6 {[%clk 0:00:51.2]} 16...
Bxf6 {[%clk 0:00:48.7]} 17. N2f3 {[%clk 0:00:51.7]} 17... Red8 {[%clk
0:00:44.8]} 18. Qd2 {[%clk 0:00:24.2]} 18... Na4 {[%clk 0:00:42.8]} 19. Qc2
{[%clk 0:00:20.5]} 19... Nb6 {[%clk 0:00:42.2]} 20. Qb1 {[%clk 0:00:18.4]} 20...
Nc4 {[%clk 0:00:42]} 21. Nd2 {[%clk 0:00:11.5]} 21... Ne5 {[%clk 0:00:37]} 22.
N2b3 {[%clk 0:00:10.2]} 22... b5 {[%clk 0:00:33.5]} 23. f4 {[%clk 0:00:10]}
23... Nc4 {[%clk 0:00:33]} 24. Kh1 {[%clk 0:00:10.1]} 24... Qb6 {[%clk
0:00:31.8]} 25. Nf3 {[%clk 0:00:09.4]} 25... a5 {[%clk 0:00:27]} 26. Nbd2 {[%clk
0:00:07.7]} 26... Ne3 {[%clk 0:00:24]} 27. Rc1 {[%clk 0:00:07.8]} 27... d5
{[%clk 0:00:20]} 28. Qd3 {[%clk 0:00:07.5]} 28... Nc4 {[%clk 0:00:19]} 29. e5
{[%clk 0:00:07.5]} 29... Be7 {[%clk 0:00:18]} 30. Qb1 {[%clk 0:00:07.4]} 30...
b4 {[%clk 0:00:17.5]} 31. axb4 {[%clk 0:00:05.7]} 31... Nxd2 {[%clk 0:00:16.9]}
32. Nd4 {[%clk 0:00:06.6]} 32... axb4 {[%clk 0:00:17.7]} 33. Qc2 {[%clk
0:00:05]} 33... Nc4 {[%clk 0:00:17]} 34. f5 {[%clk 0:00:03.3]} 34... bxc3 {[%clk
0:00:16.8]} 35. fxe6 {[%clk 0:00:02.8]} 35... fxe6 {[%clk 0:00:16.4]} 36. bxc3
{[%clk 0:00:03.7]} 36... Bg5 {[%clk 0:00:16.5]} 37. Rb1 {[%clk 0:00:04.6]} 37...
Na3 {[%clk 0:00:15.4]} 38. Qd3 {[%clk 0:00:05.5]} 38... Nxb1 {[%clk 0:00:15.2]}
39. Qd2 {[%clk 0:00:06.4]} 39... Nxd2 {[%clk 0:00:14.5]} 40. Rb1 {[%clk
0:00:07.3]} 40... Qc7 {[%clk 0:00:14.8]} 41. Rd1 {[%clk 0:00:06.5]} 41... Qxc3
{[%clk 0:00:14.6]} 42. Nxe6 {[%clk 0:00:07.4]} 42... Qc2 {[%clk 0:00:14.3]} 43.
Rg1 {[%clk 0:00:06.2]} 43... Rd7 {[%clk 0:00:14.4]} 44. Nd8 {[%clk 0:00:06.8]}
44... Rcxd8 {[%clk 0:00:14.1]} 45. e6 {[%clk 0:00:07.1]} 45... Re7 {[%clk
0:00:14.2]} 46. h4 {[%clk 0:00:05.4]} 46... Rxe6 {[%clk 0:00:14.2]} 47. Kh2
{[%clk 0:00:06.3]} 47... Bf4+ {[%clk 0:00:14.1]} 0-1

[Event "*** SCC Grand Prix: Titled Tuesday Blitz"]
[Site "Chess.com"]
[Date "2020.06.02"]
[Round "4"]
[White "jocmil"]
[Black "tan275"]
[Result "0-1"]
[WhiteElo "2465"]
[BlackElo "2200"]
[TimeControl "180+1"]
[EndTime "10:40:28 PDT"]
[Termination "tan275 won on time"]

1. Nf3 {[%clk 0:03:00.9]} 1... d5 {[%clk 0:02:55.3]} 2. d4 {[%clk 0:03:00.8]}
2... Nf6 {[%clk 0:02:54.1]} 3. Bf4 {[%clk 0:03:01.3]} 3... c5 {[%clk 0:02:53.8]}
4. e3 {[%clk 0:03:01.5]} 4... Nc6 {[%clk 0:02:52.7]} 5. c3 {[%clk 0:03:00.7]}
5... Qb6 {[%clk 0:02:48.8]} 6. Qc1 {[%clk 0:02:58.6]} 6... cxd4 {[%clk
0:02:39.1]} 7. exd4 {[%clk 0:02:57.5]} 7... Bf5 {[%clk 0:02:39]} 8. Nbd2 {[%clk
0:02:57.1]} 8... e6 {[%clk 0:02:38.9]} 9. Be2 {[%clk 0:02:48.4]} 9... h6 {[%clk
0:02:37]} 10. h3 {[%clk 0:02:46.8]} 10... Be7 {[%clk 0:02:36.5]} 11. O-O {[%clk
0:02:46.1]} 11... O-O {[%clk 0:02:36.6]} 12. Nb3 {[%clk 0:02:40.5]} 12... Rfc8
{[%clk 0:02:30.9]} 13. Qd1 {[%clk 0:01:54.1]} 13... a5 {[%clk 0:02:21.4]} 14. a4
{[%clk 0:01:53.2]} 14... Qd8 {[%clk 0:02:10.1]} 15. Bb5 {[%clk 0:01:47.2]} 15...
Ne4 {[%clk 0:02:07.5]} 16. Ne5 {[%clk 0:01:42.3]} 16... Nxe5 {[%clk 0:02:02.6]}
17. Bxe5 {[%clk 0:01:43.2]} 17... Nd6 {[%clk 0:01:48.4]} 18. Bxd6 {[%clk
0:01:35.2]} 18... Bxd6 {[%clk 0:01:46.4]} 19. Bd3 {[%clk 0:01:35.4]} 19... Bxd3
{[%clk 0:01:38.8]} 20. Qxd3 {[%clk 0:01:36.3]} 20... Qf6 {[%clk 0:01:24]} 21.
Nd2 {[%clk 0:01:29.7]} 21... Rc6 {[%clk 0:00:56.4]} 22. Rfe1 {[%clk 0:01:10.9]}
22... Rb6 {[%clk 0:00:46.9]} 23. Qc2 {[%clk 0:00:57.9]} 23... Rc8 {[%clk
0:00:41.6]} 24. Nf3 {[%clk 0:00:57.5]} 24... Qf4 {[%clk 0:00:21.7]} 25. Re2
{[%clk 0:00:53.5]} 25... Rc4 {[%clk 0:00:16.7]} 26. Rae1 {[%clk 0:00:44.9]}
26... Qf6 {[%clk 0:00:14.7]} 27. Ne5 {[%clk 0:00:39.6]} 27... Bxe5 {[%clk
0:00:14.8]} 28. Rxe5 {[%clk 0:00:40.5]} 28... Qd8 {[%clk 0:00:13.8]} 29. f4
{[%clk 0:00:35.2]} 29... Qd7 {[%clk 0:00:13.5]} 30. f5 {[%clk 0:00:34.6]} 30...
Qxa4 {[%clk 0:00:12.1]} 31. Qf2 {[%clk 0:00:20.9]} 31... Qd7 {[%clk 0:00:10.9]}
32. f6 {[%clk 0:00:19.3]} 32... g6 {[%clk 0:00:10.7]} 33. h4 {[%clk 0:00:19.1]}
33... h5 {[%clk 0:00:10.2]} 34. Qf4 {[%clk 0:00:18.8]} 34... Qe8 {[%clk
0:00:10.2]} 35. g4 {[%clk 0:00:19.1]} 35... hxg4 {[%clk 0:00:08.3]} 36. h5
{[%clk 0:00:19.4]} 36... Qf8 {[%clk 0:00:08.4]} 37. hxg6 {[%clk 0:00:19]} 37...
fxg6 {[%clk 0:00:08.5]} 38. Rxe6 {[%clk 0:00:18]} 38... Rxe6 {[%clk 0:00:07.5]}
39. Rxe6 {[%clk 0:00:18.9]} 39... Rc6 {[%clk 0:00:06.9]} 40. Rxc6 {[%clk
0:00:08.2]} 40... bxc6 {[%clk 0:00:06.2]} 41. Qe5 {[%clk 0:00:07.7]} 41... Qf7
{[%clk 0:00:06.2]} 42. Kg2 {[%clk 0:00:06.7]} 42... Kh7 {[%clk 0:00:06.1]} 43.
Kg3 {[%clk 0:00:06.7]} 43... Kh6 {[%clk 0:00:05.6]} 44. Kxg4 {[%clk 0:00:04.8]}
44... Qd7+ {[%clk 0:00:05.7]} 45. Kh4 {[%clk 0:00:04.6]} 45... Qf7 {[%clk
0:00:06.1]} 46. Qg5+ {[%clk 0:00:04.2]} 46... Kh7 {[%clk 0:00:06.7]} 47. Qe5
{[%clk 0:00:05.1]} 47... Kg8 {[%clk 0:00:05.4]} 48. Kg5 {[%clk 0:00:04.8]} 48...
Kh7 {[%clk 0:00:06.3]} 49. Qe7 {[%clk 0:00:03.9]} 49... Kg8 {[%clk 0:00:07.2]}
0-1